fUSD/lending_fUSD_20241109
["ID","MTS","AMOUNT","RATE_DAILY","PERIOD"]
[341743859,1731179817022,-1000.0,0.0004089,30]
[341743860,1731179817048,-1000.0,0.0004089,30]
[341743861,1731179817073,-1000.0,0.0004089,30]
[341743862,1731179817099,-1000.0,0.0004089,30]
[341743863,1731179817128,-1000.0,0.0004089,30]
[341743864,1731179817150,-1004.90279324,0.0004089,30]
[341743865,1731179817174,-1000.0,0.0004089,30]
[341743866,1731179817197,-1000.0,0.0004089,30]
[341743867,1731179817221,-472.67735366,0.0004089,30]
[341743868,1731179817245,-348.94911609,0.0004089,60]
[341743869,1731179817268,-196.0,0.0004089,30]
[341743870,1731179817292,-1007.70458344,0.0004089,30]
[341743871,1731179817315,-3000.0,0.0004089,120]
[341743872,1731179817338,-5575.97747142,0.0004089,120]
[341743873,1731179817361,-200.0,0.0004089,120]
[341743874,1731179817385,-299.8883567,0.0004089,120]
[341743875,1731179817409,-1159.55993636,0.0004089,90]
[341743876,1731179817432,-2993.26741634,0.0004089,120]
[341743877,1731179817454,-2740.09499485,0.0004089,120]
[341743878,1731179817478,-295.38055734,0.0004089,30]
[341743879,1731179817502,-233.22798755,0.0004089,30]
[341743880,1731179817525,-889.422089,0.0004089,30]
[341743881,1731179817548,-3093.79826685,0.0004089,120]
[341743882,1731179817570,-150.49932171,0.0004089,120]
[341743883,1731179817593,-159.05132947,0.0004089,120]
[341743884,1731179817616,-319.51749806,0.0004089,120]
[341743885,1731179817643,-3087.26457367,0.0004089,60]
[341743886,1731179817667,-3091.91604602,0.0004089,120]
[341743887,1731179817692,-271.04416931,0.0004089,120]
[341743888,1731179817721,-1106.82661085,0.0004089,120]
[341743889,1731179817769,-2074.77414266,0.0004089,120]
[341743890,1731179817802,-517.86933863,0.0004089,120]
[341743891,1731179817825,-227.99284489,0.0004089,120]
[341743892,1731179817848,-328.94655285,0.0004089,120]
[341743893,1731179817878,-1077.19770686,0.0004089,30]
[341743894,1731179817901,-980.63571334,0.0004089,30]
[341743895,1731179817926,-151.3032299,0.0004089,90]
[341743896,1731179817951,-738.89377576,0.0004089,120]
[341743897,1731179817974,-711.37946047,0.0004089,120]
[341743898,1731179817998,-327.82691121,0.0004089,120]
[341743899,1731179818023,-450.14989325,0.0004089,120]
[341743900,1731179818046,-396.6710004,0.0004089,120]
[341743901,1731179818069,-3174.73686507,0.0004089,120]
[341743902,1731179818092,-153.21947367,0.0004089,120]
[341743903,1731179818114,-3072.51995375,0.0004089,120]
[341743904,1731179818142,-586.26903432,0.0004089,120]
[341743905,1731179818167,-50000.0,0.0004089,30]
[341743906,1731179818192,-50000.0,0.0004089,31]
[341743907,1731179818218,-50000.0,0.0004089,32]
[341743908,1731179818245,-50000.0,0.0004089,33]
[341743909,1731179818270,-50000.0,0.0004089,34]
[341743910,1731179818293,-200.0,0.0004089,120]
[341743911,1731179818316,-200.0,0.0004089,120]
[341743912,1731179818339,-200.0,0.0004089,120]
[341743913,1731179818363,-522.23725737,0.0004089,120]
[341743914,1731179818388,-9975.50955706,0.0004089,30]
[341743915,1731179818411,-217.0,0.0004089,120]
[341743916,1731179818436,-5100.0,0.0004089,30]
[341743917,1731179818460,-5100.0,0.0004089,31]
[341743918,1731179818486,-5100.0,0.0004089,32]
[341743919,1731179818510,-5100.0,0.0004089,33]
[341743920,1731179818533,-335.0,0.0004089,120]
[341743921,1731179818557,-5000.0,0.0004089,30]
[341743922,1731179818583,-500.0,0.0004089,120]
[341743923,1731179818605,-500.0,0.0004089,120]
[341743924,1731179818629,-500.0,0.0004089,120]
[341743925,1731179818652,-500.0,0.0004089,120]
[341743926,1731179818675,-500.0,0.0004089,120]
[341743927,1731179818698,-500.0,0.0004089,120]
[341743928,1731179818721,-500.0,0.0004089,120]
[341743929,1731179818745,-500.0,0.0004089,120]
[341743930,1731179818768,-500.0,0.0004089,120]
[341743931,1731179818790,-500.0,0.0004089,120]
[341743932,1731179818813,-500.0,0.0004089,120]
[341743933,1731179818837,-500.0,0.0004089,120]
[341743934,1731179819018,-500.0,0.0004089,120]
[341743935,1731179819042,-500.0,0.0004089,120]
[341743936,1731179819065,-500.0,0.0004089,120]
[341743937,1731179819088,-500.0,0.0004089,120]
[341743938,1731179819112,-500.0,0.0004089,120]
[341743939,1731179819138,-500.0,0.0004089,120]
[341743940,1731179819161,-446.71372821,0.0004089,120]
[341743941,1731179819184,-200.0,0.0004089,120]
[341743942,1731179819207,-226.54478128,0.0004089,30]
[341743943,1731179819231,-800.27730266,0.0004089,120]
[341743944,1731179819253,-8758.20154216,0.0004089,120]
[341743945,1731179819276,-1626915.02772936,0.0004089,30]
[341743946,1731179821495,966.36,0.00027,60]
[341743947,1731179827851,-2000000.0,0.0004089,30]
[341743948,1731179833271,-2000000.0,0.0004089,30]
[341743949,1731179842695,-5000000.0,0.0004089,30]
[341743950,1731179849612,-5000000.0,0.0004089,30]
[341743951,1731179905807,-5000000.0,0.0004089,30]
[341743952,1731179913266,-5000000.0,0.0004089,30]
[341743953,1731179930248,-2964.74841609,0.0001393,2]
[341743954,1731179930269,-459.4,0.00014006,2]
[341743955,1731179930291,-250.0,0.0001403,2]
[341743956,1731179930312,-200.0,0.0001403,2]
[341743957,1731179930338,-1709.49,0.00014059,2]
[341743958,1731179930360,-300.0,0.00014081,2]
[341743959,1731179930597,-23900.0,0.00014082,2]
[341743960,1731179930619,-250.0,0.00014128,2]
[341743961,1731179930641,-17336.36158391,0.00014128,2]
[341743962,1731179963558,-5000000.0,0.0004089,30]
[341743965,1731180021200,966.36,0.00027,60]
[341743966,1731180035553,445.66,0.00027,60]
[341743967,1731180048315,481.99,0.00027,60]
[341743968,1731180060532,-6000001.0,0.00040824,30]
[341743969,1731180067370,-6000002.0,0.00040824,30]
[341743970,1731180072102,-6000002.0,0.00040824,30]
[341743971,1731180183900,800.0,0.00026986,120]
[341743972,1731180252328,800.0,0.00026986,120]
[341743973,1731180254566,150.0,0.0001092,2]
[341743974,1731180254588,24.89,0.0001092,2]
[341743975,1731180263265,-5000000.0,0.00040824,30]
[341743976,1731180319706,150.0,9e-05,2]
[341743977,1731180319729,150.0,9e-05,2]
[341743978,1731180319751,150.0,9e-05,2]
[341743979,1731180319775,150.0,9e-05,2]
[341743980,1731180319798,150.0,9e-05,2]
[341743981,1731180319821,150.0,9e-05,2]
[341743982,1731180319843,150.0,9e-05,2]
[341743983,1731180319867,150.0,9e-05,2]
[341743984,1731180319889,150.0,9e-05,2]
[341743985,1731180319912,150.0,9e-05,2]
[341743986,1731180319934,150.0,9e-05,2]
[341743987,1731180319966,895.12103777,9e-05,2]
[341743989,1731180354988,150.0,6.94e-05,2]
[341743990,1731180355011,150.0,6.94e-05,2]
[341743991,1731180355034,150.0,6.94e-05,2]
[341743992,1731180355057,150.0,6.94e-05,2]
[341743993,1731180355089,1187.87896223,6.94e-05,2]
[341743995,1731180364589,800.0,0.00026986,120]
[341743996,1731180364954,5755.42173898,0.0002,30]
[341743997,1731180365190,478.65969546,0.0002,30]
[341743999,1731180432112,-417.51653817,0.00012047,2]
[341744000,1731180432147,800.0,0.00026986,120]
[341744001,1731180440158,-1217.09346183,0.00012047,2]
[341744002,1731180440180,-250.0,0.00013627,2]
[341744003,1731180440202,-2177.68,0.00013657,2]
[341744004,1731180440226,-308.77,0.00013717,2]
[341744005,1731180440246,-334.66353514,0.00013718,2]
[341744006,1731180482783,410.62000911,0.00015,10]
[341744016,1731180548132,-787.06067029,0.0001285,2]
[341744017,1731180548152,-601.02362673,0.00013,2]
[341744018,1731180548175,-850.67840115,0.0001305,2]
[341744019,1731180548194,-155.76,0.00013232,2]
[341744020,1731180548217,-250.0,0.00013233,2]
[341744021,1731180548239,-150.0,0.0001324,2]
[341744022,1731180548261,-300.0,0.00013244,2]
[341744023,1731180548282,-23531.17283708,0.00013245,2]
[341744024,1731180549206,-354.82014758,0.00013245,2]
[341744025,1731180565178,-14.00701534,0.00013245,2]
[341744026,1731180565200,-600.0,0.000135,2]
[341744027,1731180565225,-2418.24616666,0.000135,2]
[341744028,1731180577450,-318.73,0.00013601,2]
[341744029,1731180577477,-269.82,0.00013601,2]
[341744030,1731180577507,-318.73,0.00013608,2]
[341744031,1731180577533,-499.99,0.00013608,2]
[341744032,1731180577560,-392.33,0.00013608,2]
[341744033,1731180577585,-1658.32,0.00013608,2]
[341744034,1731180577610,-4404.28,0.00013608,2]
[341744035,1731180577636,-318.73,0.00013615,2]
[341744036,1731180577660,-150.99,0.00013622,2]
[341744037,1731180577686,-318.73,0.00013622,2]
[341744038,1731180577711,-318.73,0.00013629,2]
[341744039,1731180577738,-318.73,0.00013636,2]
[341744040,1731180577765,-318.73,0.00013643,2]
[341744041,1731180577791,-318.73,0.00013651,2]
[341744042,1731180577817,-318.73,0.00013658,2]
[341744043,1731180577843,-318.73,0.00013665,2]
[341744044,1731180577869,-318.73,0.00013672,2]
[341744045,1731180577895,-318.73,0.00013679,2]
[341744046,1731180577920,-318.73,0.00013686,2]
[341744047,1731180577945,-318.73,0.00013694,2]
[341744048,1731180577972,-318.73,0.00013701,2]
[341744049,1731180577997,-318.73,0.00013708,2]
[341744050,1731180578025,-318.73,0.00013715,2]
[341744051,1731180578050,-318.73,0.00013722,2]
[341744052,1731180578075,-1699.94,0.00013728,2]
[341744053,1731180578100,-318.73,0.00013729,2]
[341744054,1731180578125,-318.73,0.00013736,2]
[341744055,1731180578151,-227.05,0.00013737,2]
[341744056,1731180578177,-313.21,0.00013755,2]
[341744057,1731180578202,-2000.0,0.00013779,2]
[341744058,1731180578228,-439.08,0.00013854,2]
[341744059,1731180578255,-150.0,0.00013864,2]
[341744060,1731180578283,-455.56,0.00013898,2]
[341744061,1731180578310,-519.59,0.00013993,2]
[341744062,1731180578336,-844.16,0.00014059,2]
[341744063,1731180578362,-200.0,0.00014076,2]
[341744064,1731180578388,-1852.42,0.00014128,2]
[341744065,1731180578413,-3970.16,0.00014139,2]
[341744066,1731180578439,-170.0,0.00014153,2]
[341744067,1731180578466,-301.31,0.00014247,2]
[341744068,1731180578494,-1634.61,0.00014311,2]
[341744069,1731180578519,-684.54,0.00014382,2]
[341744070,1731180578545,-420.0,0.00014521,2]
[341744071,1731180578573,-455.56,0.00014593,2]
[341744072,1731180578601,-393.97229506,0.00014681,2]
[341744073,1731180578627,-525.0,0.00014701,2]
[341744074,1731180578655,-150.0,0.00014809,2]
[341744075,1731180578684,-150.0,0.00014817,2]
[341744076,1731180578710,-150.0,0.00014817,2]
[341744077,1731180578737,-150.0,0.00014826,2]
[341744078,1731180578767,-150.0,0.00014826,2]
[341744079,1731180578793,-150.0,0.00014832,2]
[341744080,1731180578821,-150.0,0.00014857,2]
[341744081,1731180578846,-155.76,0.00014885,2]
[341744082,1731180578874,-150.0,0.00014896,2]
[341744083,1731180578900,-386.33584014,0.000149,2]
[341744084,1731180578930,-150.0,0.00014971,2]
[341744085,1731180578956,-357.98833217,0.00014973,2]
[341744086,1731180578983,-500.0,0.00014973,2]
[341744087,1731180579010,-150.0,0.00014974,2]
[341744088,1731180579036,-181.41,0.00014975,2]
[341744089,1731180579062,-409.35,0.0001499,3]
[341744090,1731180579090,-300.0,0.00014994,2]
[341744091,1731180579120,-500.0,0.00014999,2]
[341744092,1731180579148,-500.0,0.00014999,2]
[341744093,1731180579175,-500.0,0.00014999,2]
[341744094,1731180579204,-463.0999138,0.00014999,2]
[341744095,1731180579235,-500.0,0.00014999,2]
[341744096,1731180579265,-500.0,0.00014999,2]
[341744097,1731180579296,-500.0,0.00014999,2]
[341744098,1731180579500,-158.05898132,0.00014999,2]
[341744099,1731180579534,-500.0,0.00014999,2]
[341744100,1731180579561,-500.0,0.00014999,2]
[341744101,1731180579588,-500.0,0.00014999,2]
[341744102,1731180579616,-313.36169503,0.00014999,2]
[341744103,1731180579643,-500.0,0.00014999,2]
[341744104,1731180579669,-547.572,0.00014999,2]
[341744105,1731180579696,-354.40383548,0.00014999,2]
[341744106,1731180579723,-500.0,0.00014999,2]
[341744107,1731180579752,-500.0,0.00014999,2]
[341744108,1731180579780,-386.68368483,0.00014999,2]
[341744109,1731180579805,-467.00204368,0.00014999,2]
[341744110,1731180579831,-163.00022707,0.00014999,2]
[341744111,1731180579857,-500.0,0.00014999,2]
[341744112,1731180579883,-500.0,0.00014999,2]
[341744113,1731180579908,-500.0,0.00014999,2]
[341744114,1731180579934,-500.0,0.00014999,2]
[341744115,1731180579959,-500.0,0.00014999,2]
[341744116,1731180579985,-232.87220403,0.00014999,2]
[341744117,1731180580011,-181.11136342,0.00014999,2]
[341744118,1731180580036,-500.0,0.00014999,2]
[341744119,1731180580061,-500.0,0.00014999,2]
[341744120,1731180580086,-500.0,0.00014999,2]
[341744121,1731180580115,-500.0,0.00014999,2]
[341744122,1731180580140,-500.0,0.00014999,2]
[341744123,1731180580168,-500.0,0.00014999,2]
[341744124,1731180580194,-373.82151554,0.00014999,2]
[341744125,1731180580221,-38861.67606843,0.00015,2]
[341744152,1731180632153,-150.0,0.00014129,2]
[341744154,1731180632163,-7088.029295,0.000149,2]
[341744159,1731180632211,-2372.94844856,0.000149,2]
[341744161,1731180632221,-300.0,0.00014999,2]
[341744163,1731180632230,-150.0,0.00014999,2]
[341744165,1731180632239,-4868.43220908,0.00015,2]
[341744167,1731180632250,-3406.95471765,0.00015,2]
[341744169,1731180632261,-19666.08109819,0.00015,2]
[341744172,1731180632285,-653.0,0.00015,2]
[341744177,1731180632326,-9262.38141363,0.00015,2]
[341744179,1731180632337,-84042.68605169,0.00015,2]
[341744181,1731180632348,-11683.321134,0.00015,2]
[341744183,1731180632359,-769.26120065,0.00015,2]
[341744186,1731180632378,-1650.45501,0.00015,2]
[341744188,1731180632388,-6598.69644645,0.00015,2]
[341744190,1731180632399,-2650.9573864,0.00015,2]
[341744192,1731180632414,-332.82649927,0.00015,2]
[341744195,1731180632435,-33130.03793686,0.00015,2]
[341744257,1731180638649,-1147.46722022,0.000149,2]
[341744258,1731180638658,-19305.33078158,0.00015,2]
[341744259,1731180638720,-476.46744321,0.00015,2]
[341744260,1731180638749,-46.39072646,0.00015,2]
[341744261,1731180638927,-2862.73962057,0.00015,2]
[341744262,1731180638953,-34384.41035703,0.00015,2]
[341744263,1731180638995,-1529.58,0.00015,2]
[341744266,1731180639753,-342.108,0.00015,2]
[341744267,1731180639764,-3633.56269946,0.00015,2]
[341744268,1731180639776,-465.64610461,0.00015,2]
[341744269,1731180639788,-695.33500015,0.00015,2]
[341744270,1731180639799,-7245.6652312,0.00015,2]
[341744271,1731180639810,-33442.579742,0.00015,2]
[341744272,1731180639821,-13714.40290784,0.00015,2]
[341744273,1731180640036,-1568.12904153,0.00015,2]
[341744274,1731180640063,-38137.5,0.00015,2]
[341744275,1731180640084,-2351.04614,0.00015,2]
[341744277,1731180640112,-717.61989546,0.00015,2]
[341744284,1731180643043,-11444.947811,0.00015,2]
[341744285,1731180643054,-651565.86977497,0.00015,2]
[341744286,1731180643111,-10852.61019446,0.00015,2]
[341744287,1731180643122,-397.66172814,0.00015,2]
[341744288,1731180643145,-244498.41789796,0.00015,2]
[341744289,1731180643168,-21033.92703749,0.00015,2]
[341744290,1731180643179,-402.8275,0.00015,2]
[341744291,1731180643190,-696.06019635,0.00015,2]
[341744292,1731180643201,-344.775,0.00015,2]
[341744293,1731180643212,-1639.38409076,0.00015,2]
[341744294,1731180643228,-14343.31777233,0.00015,2]
[341744295,1731180643239,-2020.12,0.00015,2]
[341744296,1731180643250,-11459.32520293,0.00015,2]
[341744297,1731180643268,-3191.67027699,0.00015,2]
[341744298,1731180643281,-2541.3138532,0.00015,2]
[341744300,1731180643370,-341.04,0.00015,2]
[341744301,1731180643436,-28059.78859094,0.00015,2]
[341744302,1731180643447,-3621.23493034,0.00015,2]
[341744303,1731180643465,-311.42,0.00015,2]
[341744304,1731180643476,-3006.93699989,0.00015,2]
[341744305,1731180643486,-14650.95753886,0.00015,2]
[341744306,1731180643498,-11772.093878,0.00015,2]
[341744312,1731180645787,-49001.81849267,0.00015,2]
[341744313,1731180645798,-7665.80099999,0.00015,2]
[341744314,1731180645920,-657132.92098068,0.00015,2]
[341744315,1731180646339,-150.90676523,0.00015,2]
[341744317,1731180810111,966.36,0.00027,60]
[341744318,1731180821715,966.36,0.00027,60]
[341744319,1731180835377,966.36,0.00027,60]
[341744320,1731180846442,966.36,0.00027,60]
[341744321,1731180860177,966.36,0.00027,60]
[341744322,1731180864031,2038.86866639,0.00025,120]
[341744323,1731180871747,966.36,0.00027,60]
[341744324,1731180885374,966.36,0.00027,60]
[341744325,1731180900006,966.36,0.00027,68]
[341744326,1731180910534,620.15,0.00027,60]
[341744327,1731181055041,-1000.0,0.00012936,2]
[341744330,1731181253694,-514.39,0.00012936,2]
[341744331,1731181253716,-161.94,0.0001406,2]
[341744332,1731181294383,-268.67,0.00014148,2]
[341744334,1731181561632,150.0,0.00011704,2]
[341744335,1731181561654,150.0,0.00011704,2]
[341744336,1731181561676,150.0,0.00011704,2]
[341744337,1731181561697,150.0,0.00011704,2]
[341744338,1731181561718,150.0,0.00011704,2]
[341744339,1731181561739,150.0,0.00011704,2]
[341744340,1731181561761,150.0,0.00011704,2]
[341744341,1731181561783,150.0,0.00011704,2]
[341744342,1731181561805,150.0,0.00011704,2]
[341744343,1731181561841,150.0,0.00011704,2]
[341744344,1731181561867,90.51,0.00011704,2]
[341744345,1731181594890,-1602.5471077,0.00013599,2]
[341744346,1731181594935,-150.0,0.00013616,2]
[341744347,1731181594984,-300.0,0.00013641,2]
[341744348,1731181595027,-10963.28,0.00013642,2]
[341744349,1731181595074,-251.7,0.00013699,2]
[341744350,1731181595119,-523.68,0.0001371,2]
[341744351,1731181595166,-1426.72,0.00013753,2]
[341744352,1731181595211,-15481.73,0.0001382,2]
[341744353,1731181595513,-170.0,0.00013821,2]
[341744354,1731181595539,-50000.0,0.00013821,2]
[341744355,1731181595565,-1278.66,0.00013851,2]
[341744356,1731181595591,-2171.03,0.00013923,2]
[341744357,1731181595615,-1590.51,0.00013967,2]
[341744358,1731181608411,200.0,0.00013739,2]
[341744359,1731181616286,2074.49,0.00013851,2]
[341744360,1731181622595,150.91,0.00010998,2]
[341744361,1731181623029,150.91,0.00013747,2]
[341744362,1731181657806,313.8328923,0.00013718,2]
[341744363,1731181729848,-1686.1671077,0.00013718,2]
[341744364,1731181729873,-1000.0,0.00013728,2]
[341744365,1731181729899,-452.63,0.00013728,2]
[341744366,1731181734676,200.0,0.0001371,2]
[341744367,1731181750094,-412.05939426,0.00014068,2]
[341744368,1731181750119,-3083.66,0.00014068,2]
[341744369,1731181750144,-150.24865567,0.00014077,2]
[341744370,1731181750170,-300.0,0.00014098,2]
[341744371,1731181750197,-19740.060313,0.00014098,2]
[341744372,1731181750223,-325.17,0.00014099,2]
[341744373,1731181750496,-150.0,0.00014146,2]
[341744374,1731181750525,-23631.33,0.00014148,2]
[341744375,1731181750550,-7668.67452937,0.00014148,2]
[341744399,1731181832516,-519.59,0.0001374,2]
[341744400,1731181832532,-160.3,0.00013814,2]
[341744401,1731181832547,-2537.77,0.00013896,2]
[341744402,1731181832562,-300.0,0.00014147,2]
[341744403,1731181832577,-9851.55547063,0.00014148,2]
[341744404,1731181832592,-150.99,0.00014148,2]
[341744405,1731181832606,-401.15,0.00014148,2]
[341744406,1731181832622,-999.99,0.00014148,2]
[341744408,1731181832636,-150.99,0.00014148,2]
[341744410,1731181832651,-372.84,0.00014148,2]
[341744412,1731181832664,-1727.45,0.00014148,2]
[341744415,1731181832679,-7063.75872451,0.00014148,2]
[341744417,1731181832697,-454.13,0.00014148,2]
[341744418,1731181832802,-12950.46432686,0.00014148,2]
[341744419,1731181832819,-1006.63952395,0.00014148,2]
[341744420,1731181832837,-1300.0,0.00014148,2]
[341744421,1731181832853,-720.03406303,0.00014148,2]
[341744422,1731181832893,-374.77521645,0.00014148,2]
[341744423,1731181832963,-0.28810785,0.00014148,2]
[341744427,1731181838399,-250.0,0.00014218,2]
[341744428,1731181838410,-41.7635,0.00014249,2]
[341744435,1731181838541,-458.2365,0.00014249,2]
[341744437,1731181838551,-303.254279,0.00014249,2]
[341744544,1731181840006,-196.745721,0.00014249,2]
[341744545,1731181840018,-500.0,0.00014249,2]
[341744546,1731181840027,-500.0,0.00014249,2]
[341744547,1731181840037,-500.0,0.00014249,2]
[341744548,1731181840047,-500.0,0.00014249,2]
[341744549,1731181840060,-104.05022437,0.00014249,2]
[341744550,1731181840181,-395.94977563,0.00014249,2]
[341744552,1731181840191,-330.48866657,0.00014249,2]
[341744553,1731181840201,-250.0,0.00014249,2]
[341744554,1731181840211,-200.0,0.0001425,2]
[341744555,1731181840221,-1530.53,0.0001425,2]
[341744556,1731181840231,-478.64,0.0001425,2]
[341744557,1731181840240,-823.89,0.0001425,2]
[341744558,1731181840250,-6828.44958844,0.0001425,2]
[341744559,1731181840262,-287.85557878,0.0001425,2]
[341744560,1731181840273,-307.51631413,0.0001425,2]
[341744561,1731181840285,-290.25261935,0.0001425,2]
[341744563,1731181841683,150.0,0.00016,4]
[341744569,1731181842862,-52890.6158993,0.0001425,2]
[341744570,1731181842872,-2246.15,0.0001425,2]
[341744571,1731181842881,-167.25,0.00014334,2]
[341744572,1731181842891,-523.68,0.00014395,2]
[341744573,1731181842902,-180.53,0.00014471,2]
[341744574,1731181842912,-939.22,0.00014476,2]
[341744575,1731181842922,-3077.8386,0.0001468,2]
[341744576,1731181842932,-3331.7,0.0001468,2]
[341744577,1731181842944,-393.97229506,0.00014689,2]
[341744578,1731181842953,-159.990289,0.000147,2]
[341744579,1731181842963,-709.77,0.0001477,3]
[341744580,1731181842973,-152.6915162,0.00014773,2]
[341744581,1731181842986,-95284.0818,0.0001478,2]
[341744582,1731181842996,-539.09432039,0.00014781,2]
[341744583,1731181843006,-539.09432034,0.00014794,2]
[341744584,1731181843016,-261.83406558,0.000148,2]
[341744585,1731181843027,-1987.95285852,0.00014801,2]
[341744586,1731181843036,-150.0,0.00014802,2]
[341744587,1731181843045,-539.09432034,0.00014807,2]
[341744588,1731181843056,-539.09432034,0.00014821,2]
[341744589,1731181843065,-539.09432034,0.00014834,2]
[341744590,1731181843075,-539.09432034,0.00014847,2]
[341744591,1731181843084,-255.91317394,0.00014849,2]
[341744592,1731181843093,-174.40239375,0.00014849,2]
[341744593,1731181843103,-500.0,0.00014849,2]
[341744594,1731181843112,-500.0,0.00014849,2]
[341744595,1731181843121,-500.0,0.00014849,2]
[341744596,1731181843131,-500.0,0.00014849,2]
[341744597,1731181843140,-500.0,0.00014849,2]
[341744598,1731181843150,-500.0,0.00014849,2]
[341744599,1731181843159,-500.0,0.00014849,2]
[341744600,1731181843169,-500.0,0.00014849,2]
[341744601,1731181843178,-482.23751724,0.00014849,2]
[341744602,1731181843187,-500.0,0.00014849,2]
[341744603,1731181843197,-500.0,0.00014849,2]
[341744604,1731181843206,-500.0,0.00014849,2]
[341744605,1731181843217,-13756.93159781,0.0001485,2]
[341744606,1731181843226,-525.0,0.0001485,2]
[341744607,1731181843236,-539.09432034,0.0001486,2]
[341744608,1731181843246,-539.09432034,0.00014874,2]
[341744609,1731181843256,-55369.71919034,0.0001488,2]
[341744610,1731181843265,-150.0,0.00014881,2]
[341744611,1731181843275,-33900.39519204,0.00014882,2]
[341744612,1731181843284,-539.09432034,0.00014887,2]
[341744613,1731181843294,-150.0,0.00014889,2]
[341744614,1731181843303,-183.97129738,0.000149,2]
[341744615,1731181843312,-6013.0316,0.000149,2]
[341744616,1731181843321,-21663.958,0.000149,2]
[341744617,1731181843331,-41341.7756,0.000149,2]
[341744618,1731181843339,-539.09432034,0.000149,2]
[341744619,1731181843349,-821.65176665,0.000149,2]
[341744620,1731181843358,-500.0,0.00014973,2]
[341744621,1731181843367,-500.0,0.00014973,2]
[341744622,1731181843376,-500.0,0.00014973,2]
[341744623,1731181843385,-357.98833217,0.00014973,2]
[341744624,1731181843395,-200.01033523,0.00014989,2]
[341744625,1731181843404,-438.057,0.00014999,2]
[341744626,1731181843413,-47378.39021991,0.00014999,2]
[341744627,1731181843423,-500.0,0.00014999,2]
[341744628,1731181843432,-55658.07007436,0.00014999,2]
[341744629,1731181843441,-83028.76509003,0.00014999,2]
[341744630,1731181843450,-777419.81195604,0.00015,2]
[341744631,1731181843549,-500.0,0.00014249,2]
[341744632,1731181843558,-500.0,0.00014249,2]
[341744633,1731181843568,-500.0,0.00014249,2]
[341744634,1731181843578,-500.0,0.00014249,2]
[341744635,1731181843587,-500.0,0.00014249,2]
[341744636,1731181843596,-500.0,0.00014249,2]
[341744637,1731181843606,-500.0,0.00014249,2]
[341744638,1731181843615,-276.95819925,0.00014249,2]
[341744639,1731181843624,-444.65810746,0.00014249,2]
[341744640,1731181843634,-2164.95156621,0.00015,2]
[341744641,1731181843645,-2734.9,0.00015,2]
[341744642,1731181843657,-1318.53723043,0.00015,2]
[341744643,1731181843668,-315.744,0.00015,2]
[341744644,1731181843712,-500.0,0.00014249,2]
[341744645,1731181843722,-500.0,0.00014249,2]
[341744646,1731181843731,-500.0,0.00014249,2]
[341744647,1731181843741,-23131.37876429,0.00015,2]
[341744648,1731181843835,-500.0,0.00014249,2]
[341744649,1731181843845,-500.0,0.00014249,2]
[341744650,1731181843855,-413.50586115,0.00014249,2]
[341744651,1731181843865,-500.0,0.00014249,2]
[341744652,1731181843874,-500.0,0.00014249,2]
[341744653,1731181843884,-500.0,0.00014249,2]
[341744654,1731181843893,-500.0,0.00014249,2]
[341744655,1731181843903,-73407.21013891,0.00015,2]
[341744656,1731181843945,-500.0,0.00014249,2]